{"text_format":"1","workbook":"xlsx","n_sheets":2,"sheets":["الاساس","ورقة1"],"not_rendered":{"charts":0,"images":0,"macros":1,"external_links":0,"defined_names":1,"comments":0,"pivot_tables":0},"unopened":[],"bounds":{"document_bytes":16777216,"sheet_cells":100000,"rows_first":2000,"rows_last":500,"rows_between":2000,"halvings":0,"cell_chars":16384,"cell_head_chars":4096},"cells_cut":0,"cells_raw":0,"read":"whole","date_system":"1900"}

{"sheet":"الاساس","index":0,"n_rows":195,"n_cols":42,"rows_kept":195,"cut":false,"hidden":false,"merged":[]}
["ت","رقم القيد","اسم التلميذ","الإســـــلامية","العــــــــربية","الإنكليزيـــــة","الرياضيــــات","العلــــــــــوم","الاجتماعيــات","الفنية والنشيد","الرياضــــــــة","المجموع رقما","المجموع كتابة","عدد الرسوب","النتيجة"]
[1,479,"إبراهيم سعد احمد",10,7,7,6,8," ",10,10,{"$f":"SUM(الجدول3[[#This Row],[الإســـــلامية]:[الرياضــــــــة]])","v":58},{"$f":"NoToTxt(الجدول3[[#This Row],[المجموع رقما]],\".\",\".\")","v":"ثماني وخمسون ."},{"$f":"COUNTIF(الجدول3[[#This Row],[الإســـــلامية]:[الرياضــــــــة]],\"<5\")","v":0},{"$f":"VLOOKUP(الجدول3[[#This Row],[عدد الرسوب]],$AO$2:$AP$4,2)","v":"ناجح"},null,null,null,null,null,null,null,null,null,null,null,null,null,null,null,null,null,null,null,null,null,null,null,null,null,0,"ناجح"]
[2,481,"إبراهيم ميسرابراهيم",10,10,10,10,10," ",10,10,{"$f":"SUM(الجدول3[[#This Row],[الإســـــلامية]:[الرياضــــــــة]])","v":70},{"$f":"NoToTxt(الجدول3[[#This Row],[المجموع رقما]],\".\",\".\")","v":"سبعون ."},{"$f":"COUNTIF(الجدول3[[#This Row],[الإســـــلامية]:[الرياضــــــــة]],\"<5\")","v":0},{"$f":"VLOOKUP(الجدول3[[#This Row],[عدد الرسوب]],$AO$2:$AP$4,2)","v":"ناجح"},null,null,null,null,null,null,null,null,null,null,null,null,null,null,null,null,null,null,null,null,null,null,null,null,null,1,"مكمل"]
[3,461,"احمد علاء عبد",7,6,7,5,7,null,9,9,{"$f":"SUM(الجدول3[[#This Row],[الإســـــلامية]:[الرياضــــــــة]])","v":50},{"$f":"NoToTxt(الجدول3[[#This Row],[المجموع رقما]],\".\",\".\")","v":"خمسون ."},{"$f":"COUNTIF(الجدول3[[#This Row],[الإســـــلامية]:[الرياضــــــــة]],\"<5\")","v":0},{"$f":"VLOOKUP(الجدول3[[#This Row],[عدد الرسوب]],$AO$2:$AP$4,2)","v":"ناجح"},null,null,null,null,null,null,null,null,null,null,null,null,null,null,null,null,null,null,null,null,null,null,null,null,null,4,"راسب"]
[4,480,"احمد علي صالح",10,10,10,7,10,null,10,10,{"$f":"SUM(الجدول3[[#This Row],[الإســـــلامية]:[الرياضــــــــة]])","v":67},{"$f":"NoToTxt(الجدول3[[#This Row],[المجموع رقما]],\".\",\".\")","v":"سبع وستون ."},{"$f":"COUNTIF(الجدول3[[#This Row],[الإســـــلامية]:[الرياضــــــــة]],\"<5\")","v":0},{"$f":"VLOOKUP(الجدول3[[#This Row],[عدد الرسوب]],$AO$2:$AP$4,2)","v":"ناجح"}]
[5,418,"احمد محمد جاسم",6,6,7,9,7,null,8,8,{"$f":"SUM(الجدول3[[#This Row],[الإســـــلامية]:[الرياضــــــــة]])","v":51},{"$f":"NoToTxt(الجدول3[[#This Row],[المجموع رقما]],\".\",\".\")","v":"احدى وخمسون ."},{"$f":"COUNTIF(الجدول3[[#This Row],[الإســـــلامية]:[الرياضــــــــة]],\"<5\")","v":0},{"$f":"VLOOKUP(الجدول3[[#This Row],[عدد الرسوب]],$AO$2:$AP$4,2)","v":"ناجح"}]
[6,482,"احمد محمد عبدالله",8,9,9,8,10,null,10,10,{"$f":"SUM(الجدول3[[#This Row],[الإســـــلامية]:[الرياضــــــــة]])","v":64},{"$f":"NoToTxt(الجدول3[[#This Row],[المجموع رقما]],\".\",\".\")","v":"أربع وستون ."},{"$f":"COUNTIF(الجدول3[[#This Row],[الإســـــلامية]:[الرياضــــــــة]],\"<5\")","v":0},{"$f":"VLOOKUP(الجدول3[[#This Row],[عدد الرسوب]],$AO$2:$AP$4,2)","v":"ناجح"}]
[7,482,"اروى ابراهيم احمد",8,7,8,8,8,null,10,10,{"$f":"SUM(الجدول3[[#This Row],[الإســـــلامية]:[الرياضــــــــة]])","v":59},{"$f":"NoToTxt(الجدول3[[#This Row],[المجموع رقما]],\".\",\".\")","v":"تسع وخمسون ."},{"$f":"COUNTIF(الجدول3[[#This Row],[الإســـــلامية]:[الرياضــــــــة]],\"<5\")","v":0},{"$f":"VLOOKUP(الجدول3[[#This Row],[عدد الرسوب]],$AO$2:$AP$4,2)","v":"ناجح"}]
[8,462,"اسراء علاء عبد",7,6,7,3,7,null,9,9,{"$f":"SUM(الجدول3[[#This Row],[الإســـــلامية]:[الرياضــــــــة]])","v":48},{"$f":"NoToTxt(الجدول3[[#This Row],[المجموع رقما]],\".\",\".\")","v":"ثماني وأربعون ."},{"$f":"COUNTIF(الجدول3[[#This Row],[الإســـــلامية]:[الرياضــــــــة]],\"<5\")","v":1},{"$f":"VLOOKUP(الجدول3[[#This Row],[عدد الرسوب]],$AO$2:$AP$4,2)","v":"مكمل"}]
[9,483,"اشراق فرج محمود",7,8,9,8,9,null,10,10,{"$f":"SUM(الجدول3[[#This Row],[الإســـــلامية]:[الرياضــــــــة]])","v":61},{"$f":"NoToTxt(الجدول3[[#This Row],[المجموع رقما]],\".\",\".\")","v":"احدى وستون ."},{"$f":"COUNTIF(الجدول3[[#This Row],[الإســـــلامية]:[الرياضــــــــة]],\"<5\")","v":0},{"$f":"VLOOKUP(الجدول3[[#This Row],[عدد الرسوب]],$AO$2:$AP$4,2)","v":"ناجح"}]
[10,485,"امل نشوان طامي",9,7,8,7,9,null,10,10,{"$f":"SUM(الجدول3[[#This Row],[الإســـــلامية]:[الرياضــــــــة]])","v":60},{"$f":"NoToTxt(الجدول3[[#This Row],[المجموع رقما]],\".\",\".\")","v":"ستون ."},{"$f":"COUNTIF(الجدول3[[#This Row],[الإســـــلامية]:[الرياضــــــــة]],\"<5\")","v":0},{"$f":"VLOOKUP(الجدول3[[#This Row],[عدد الرسوب]],$AO$2:$AP$4,2)","v":"ناجح"}]
[11,334,"انس محمود حسين",6,6,7,7,6,null,8,8,{"$f":"SUM(الجدول3[[#This Row],[الإســـــلامية]:[الرياضــــــــة]])","v":48},{"$f":"NoToTxt(الجدول3[[#This Row],[المجموع رقما]],\".\",\".\")","v":"ثماني وأربعون ."},{"$f":"COUNTIF(الجدول3[[#This Row],[الإســـــلامية]:[الرياضــــــــة]],\"<5\")","v":0},{"$f":"VLOOKUP(الجدول3[[#This Row],[عدد الرسوب]],$AO$2:$AP$4,2)","v":"ناجح"}]
[12,488,"انهار موفق طامي",8,8,8,9,9,null,10,10,{"$f":"SUM(الجدول3[[#This Row],[الإســـــلامية]:[الرياضــــــــة]])","v":62},{"$f":"NoToTxt(الجدول3[[#This Row],[المجموع رقما]],\".\",\".\")","v":"اثنتان وستون ."},{"$f":"COUNTIF(الجدول3[[#This Row],[الإســـــلامية]:[الرياضــــــــة]],\"<5\")","v":0},{"$f":"VLOOKUP(الجدول3[[#This Row],[عدد الرسوب]],$AO$2:$AP$4,2)","v":"ناجح"}]
[13,486,"أنور سليمان عبدالله",6,6,7,7,7,null,8,8,{"$f":"SUM(الجدول3[[#This Row],[الإســـــلامية]:[الرياضــــــــة]])","v":49},{"$f":"NoToTxt(الجدول3[[#This Row],[المجموع رقما]],\".\",\".\")","v":"تسع وأربعون ."},{"$f":"COUNTIF(الجدول3[[#This Row],[الإســـــلامية]:[الرياضــــــــة]],\"<5\")","v":0},{"$f":"VLOOKUP(الجدول3[[#This Row],[عدد الرسوب]],$AO$2:$AP$4,2)","v":"ناجح"}]
[14,487,"أنور موفق طامي",10,9,9,8,10,null,10,10,{"$f":"SUM(الجدول3[[#This Row],[الإســـــلامية]:[الرياضــــــــة]])","v":66},{"$f":"NoToTxt(الجدول3[[#This Row],[المجموع رقما]],\".\",\".\")","v":"ست وستون ."},{"$f":"COUNTIF(الجدول3[[#This Row],[الإســـــلامية]:[الرياضــــــــة]],\"<5\")","v":0},{"$f":"VLOOKUP(الجدول3[[#This Row],[عدد الرسوب]],$AO$2:$AP$4,2)","v":"ناجح"}]
[15,491,"ايلاف فيصل خضير",7,6,8,10,8,null,10,10,{"$f":"SUM(الجدول3[[#This Row],[الإســـــلامية]:[الرياضــــــــة]])","v":59},{"$f":"NoToTxt(الجدول3[[#This Row],[المجموع رقما]],\".\",\".\")","v":"تسع وخمسون ."},{"$f":"COUNTIF(الجدول3[[#This Row],[الإســـــلامية]:[الرياضــــــــة]],\"<5\")","v":0},{"$f":"VLOOKUP(الجدول3[[#This Row],[عدد الرسوب]],$AO$2:$AP$4,2)","v":"ناجح"}]
[16,490,"ايلاف قاسم محمد",10,10,10,10,10,null,10,10,{"$f":"SUM(الجدول3[[#This Row],[الإســـــلامية]:[الرياضــــــــة]])","v":70},{"$f":"NoToTxt(الجدول3[[#This Row],[المجموع رقما]],\".\",\".\")","v":"سبعون ."},{"$f":"COUNTIF(الجدول3[[#This Row],[الإســـــلامية]:[الرياضــــــــة]],\"<5\")","v":0},{"$f":"VLOOKUP(الجدول3[[#This Row],[عدد الرسوب]],$AO$2:$AP$4,2)","v":"ناجح"}]
[17,492,"ايمان علاء حسن",7,7,7,6,8,null,10,10,{"$f":"SUM(الجدول3[[#This Row],[الإســـــلامية]:[الرياضــــــــة]])","v":55},{"$f":"NoToTxt(الجدول3[[#This Row],[المجموع رقما]],\".\",\".\")","v":"خمس وخمسون ."},{"$f":"COUNTIF(الجدول3[[#This Row],[الإســـــلامية]:[الرياضــــــــة]],\"<5\")","v":0},{"$f":"VLOOKUP(الجدول3[[#This Row],[عدد الرسوب]],$AO$2:$AP$4,2)","v":"ناجح"}]
[18,489,"ايناس خيري طامي",8,6,7,8,7,null,9,9,{"$f":"SUM(الجدول3[[#This Row],[الإســـــلامية]:[الرياضــــــــة]])","v":54},{"$f":"NoToTxt(الجدول3[[#This Row],[المجموع رقما]],\".\",\".\")","v":"أربع وخمسون ."},{"$f":"COUNTIF(الجدول3[[#This Row],[الإســـــلامية]:[الرياضــــــــة]],\"<5\")","v":0},{"$f":"VLOOKUP(الجدول3[[#This Row],[عدد الرسوب]],$AO$2:$AP$4,2)","v":"ناجح"}]
[19,493,"ايه إبراهيم محمد",6,6,8,6,8,null,10,10,{"$f":"SUM(الجدول3[[#This Row],[الإســـــلامية]:[الرياضــــــــة]])","v":54},{"$f":"NoToTxt(الجدول3[[#This Row],[المجموع رقما]],\".\",\".\")","v":"أربع وخمسون ."},{"$f":"COUNTIF(الجدول3[[#This Row],[الإســـــلامية]:[الرياضــــــــة]],\"<5\")","v":0},{"$f":"VLOOKUP(الجدول3[[#This Row],[عدد الرسوب]],$AO$2:$AP$4,2)","v":"ناجح"}]
[20,494,"بلال نوار علي",7,8,9,8,9,null,10,10,{"$f":"SUM(الجدول3[[#This Row],[الإســـــلامية]:[الرياضــــــــة]])","v":61},{"$f":"NoToTxt(الجدول3[[#This Row],[المجموع رقما]],\".\",\".\")","v":"احدى وستون ."},{"$f":"COUNTIF(الجدول3[[#This Row],[الإســـــلامية]:[الرياضــــــــة]],\"<5\")","v":0},{"$f":"VLOOKUP(الجدول3[[#This Row],[عدد الرسوب]],$AO$2:$AP$4,2)","v":"ناجح"}]
[21,424,"تقى محمد صالح",8,7,8,8,8,null,10,10,{"$f":"SUM(الجدول3[[#This Row],[الإســـــلامية]:[الرياضــــــــة]])","v":59},{"$f":"NoToTxt(الجدول3[[#This Row],[المجموع رقما]],\".\",\".\")","v":"تسع وخمسون ."},{"$f":"COUNTIF(الجدول3[[#This Row],[الإســـــلامية]:[الرياضــــــــة]],\"<5\")","v":0},{"$f":"VLOOKUP(الجدول3[[#This Row],[عدد الرسوب]],$AO$2:$AP$4,2)","v":"ناجح"}]
[22,495,"حسن فرج محمود",9,8,8,9,9,null,10,10,{"$f":"SUM(الجدول3[[#This Row],[الإســـــلامية]:[الرياضــــــــة]])","v":63},{"$f":"NoToTxt(الجدول3[[#This Row],[المجموع رقما]],\".\",\".\")","v":"ثلاث وستون ."},{"$f":"COUNTIF(الجدول3[[#This Row],[الإســـــلامية]:[الرياضــــــــة]],\"<5\")","v":0},{"$f":"VLOOKUP(الجدول3[[#This Row],[عدد الرسوب]],$AO$2:$AP$4,2)","v":"ناجح"}]
[23,496,"دنيا عادل خلف",7,6,7,6,7,null,10,10,{"$f":"SUM(الجدول3[[#This Row],[الإســـــلامية]:[الرياضــــــــة]])","v":53},{"$f":"NoToTxt(الجدول3[[#This Row],[المجموع رقما]],\".\",\".\")","v":"ثلاث وخمسون ."},{"$f":"COUNTIF(الجدول3[[#This Row],[الإســـــلامية]:[الرياضــــــــة]],\"<5\")","v":0},{"$f":"VLOOKUP(الجدول3[[#This Row],[عدد الرسوب]],$AO$2:$AP$4,2)","v":"ناجح"}]
[24,497,"زيد خيري طامي",7,7,7,8,9,null,10,10,{"$f":"SUM(الجدول3[[#This Row],[الإســـــلامية]:[الرياضــــــــة]])","v":58},{"$f":"NoToTxt(الجدول3[[#This Row],[المجموع رقما]],\".\",\".\")","v":"ثماني وخمسون ."},{"$f":"COUNTIF(الجدول3[[#This Row],[الإســـــلامية]:[الرياضــــــــة]],\"<5\")","v":0},{"$f":"VLOOKUP(الجدول3[[#This Row],[عدد الرسوب]],$AO$2:$AP$4,2)","v":"ناجح"}]
[25,500,"سارة وعد عبدالله",2,2,7,3,3,null,8,8,{"$f":"SUM(الجدول3[[#This Row],[الإســـــلامية]:[الرياضــــــــة]])","v":33},{"$f":"NoToTxt(الجدول3[[#This Row],[المجموع رقما]],\".\",\".\")","v":"ثلاث وثلاثون ."},{"$f":"COUNTIF(الجدول3[[#This Row],[الإســـــلامية]:[الرياضــــــــة]],\"<5\")","v":4},{"$f":"VLOOKUP(الجدول3[[#This Row],[عدد الرسوب]],$AO$2:$AP$4,2)","v":"راسب"}]
[26,502,"سدرة اسعد محمد",6,7,7,7,9,null,10,10,{"$f":"SUM(الجدول3[[#This Row],[الإســـــلامية]:[الرياضــــــــة]])","v":56},{"$f":"NoToTxt(الجدول3[[#This Row],[المجموع رقما]],\".\",\".\")","v":"ست وخمسون ."},{"$f":"COUNTIF(الجدول3[[#This Row],[الإســـــلامية]:[الرياضــــــــة]],\"<5\")","v":0},{"$f":"VLOOKUP(الجدول3[[#This Row],[عدد الرسوب]],$AO$2:$AP$4,2)","v":"ناجح"}]
[27,503,"شذى غافل ناظم",7,7,7,9,9,null,10,10,{"$f":"SUM(الجدول3[[#This Row],[الإســـــلامية]:[الرياضــــــــة]])","v":59},{"$f":"NoToTxt(الجدول3[[#This Row],[المجموع رقما]],\".\",\".\")","v":"تسع وخمسون ."},{"$f":"COUNTIF(الجدول3[[#This Row],[الإســـــلامية]:[الرياضــــــــة]],\"<5\")","v":0},{"$f":"VLOOKUP(الجدول3[[#This Row],[عدد الرسوب]],$AO$2:$AP$4,2)","v":"ناجح"}]
[28,504,"شهد رياض طامي",7,8,8,7,10,null,10,10,{"$f":"SUM(الجدول3[[#This Row],[الإســـــلامية]:[الرياضــــــــة]])","v":60},{"$f":"NoToTxt(الجدول3[[#This Row],[المجموع رقما]],\".\",\".\")","v":"ستون ."},{"$f":"COUNTIF(الجدول3[[#This Row],[الإســـــلامية]:[الرياضــــــــة]],\"<5\")","v":0},{"$f":"VLOOKUP(الجدول3[[#This Row],[عدد الرسوب]],$AO$2:$AP$4,2)","v":"ناجح"}]
[29,505,"شهد فاضل محمد",10,10,10,10,10," ",10,10,{"$f":"SUM(الجدول3[[#This Row],[الإســـــلامية]:[الرياضــــــــة]])","v":70},{"$f":"NoToTxt(الجدول3[[#This Row],[المجموع رقما]],\".\",\".\")","v":"سبعون ."},{"$f":"COUNTIF(الجدول3[[#This Row],[الإســـــلامية]:[الرياضــــــــة]],\"<5\")","v":0},{"$f":"VLOOKUP(الجدول3[[#This Row],[عدد الرسوب]],$AO$2:$AP$4,2)","v":"ناجح"}]
[30,429,"صالح عبدالله محمود",8,7,9,8,9,null,10,10,{"$f":"SUM(الجدول3[[#This Row],[الإســـــلامية]:[الرياضــــــــة]])","v":61},{"$f":"NoToTxt(الجدول3[[#This Row],[المجموع رقما]],\".\",\".\")","v":"احدى وستون ."},{"$f":"COUNTIF(الجدول3[[#This Row],[الإســـــلامية]:[الرياضــــــــة]],\"<5\")","v":0},{"$f":"VLOOKUP(الجدول3[[#This Row],[عدد الرسوب]],$AO$2:$AP$4,2)","v":"ناجح"}]
[31,506,"صباح يونس محمد",6,7,8,7,8,null,9,9,{"$f":"SUM(الجدول3[[#This Row],[الإســـــلامية]:[الرياضــــــــة]])","v":54},{"$f":"NoToTxt(الجدول3[[#This Row],[المجموع رقما]],\".\",\".\")","v":"أربع وخمسون ."},{"$f":"COUNTIF(الجدول3[[#This Row],[الإســـــلامية]:[الرياضــــــــة]],\"<5\")","v":0},{"$f":"VLOOKUP(الجدول3[[#This Row],[عدد الرسوب]],$AO$2:$AP$4,2)","v":"ناجح"}]
[32,507,"صفا محمد احمد",9,7,8,7,9,null,10,10,{"$f":"SUM(الجدول3[[#This Row],[الإســـــلامية]:[الرياضــــــــة]])","v":60},{"$f":"NoToTxt(الجدول3[[#This Row],[المجموع رقما]],\".\",\".\")","v":"ستون ."},{"$f":"COUNTIF(الجدول3[[#This Row],[الإســـــلامية]:[الرياضــــــــة]],\"<5\")","v":0},{"$f":"VLOOKUP(الجدول3[[#This Row],[عدد الرسوب]],$AO$2:$AP$4,2)","v":"ناجح"}]
[33,430,"عائشة اسعد عبدالله",7,7,8,8,8,null,10,10,{"$f":"SUM(الجدول3[[#This Row],[الإســـــلامية]:[الرياضــــــــة]])","v":58},{"$f":"NoToTxt(الجدول3[[#This Row],[المجموع رقما]],\".\",\".\")","v":"ثماني وخمسون ."},{"$f":"COUNTIF(الجدول3[[#This Row],[الإســـــلامية]:[الرياضــــــــة]],\"<5\")","v":0},{"$f":"VLOOKUP(الجدول3[[#This Row],[عدد الرسوب]],$AO$2:$AP$4,2)","v":"ناجح"}]
[34,431,"عائشة رعد فرج",7,6,8,5,8," ",8,8,{"$f":"SUM(الجدول3[[#This Row],[الإســـــلامية]:[الرياضــــــــة]])","v":50},{"$f":"NoToTxt(الجدول3[[#This Row],[المجموع رقما]],\".\",\".\")","v":"خمسون ."},{"$f":"COUNTIF(الجدول3[[#This Row],[الإســـــلامية]:[الرياضــــــــة]],\"<5\")","v":0},{"$f":"VLOOKUP(الجدول3[[#This Row],[عدد الرسوب]],$AO$2:$AP$4,2)","v":"ناجح"}]
[35,434,"عبد الباري صدام عبدالله",7,8,8,7,9,null,10,10,{"$f":"SUM(الجدول3[[#This Row],[الإســـــلامية]:[الرياضــــــــة]])","v":59},{"$f":"NoToTxt(الجدول3[[#This Row],[المجموع رقما]],\".\",\".\")","v":"تسع وخمسون ."},{"$f":"COUNTIF(الجدول3[[#This Row],[الإســـــلامية]:[الرياضــــــــة]],\"<5\")","v":0},{"$f":"VLOOKUP(الجدول3[[#This Row],[عدد الرسوب]],$AO$2:$AP$4,2)","v":"ناجح"}]
[36,508,"عبدالله خالد بشير",8,8,9,8,9,null,10,10,{"$f":"SUM(الجدول3[[#This Row],[الإســـــلامية]:[الرياضــــــــة]])","v":62},{"$f":"NoToTxt(الجدول3[[#This Row],[المجموع رقما]],\".\",\".\")","v":"اثنتان وستون ."},{"$f":"COUNTIF(الجدول3[[#This Row],[الإســـــلامية]:[الرياضــــــــة]],\"<5\")","v":0},{"$f":"VLOOKUP(الجدول3[[#This Row],[عدد الرسوب]],$AO$2:$AP$4,2)","v":"ناجح"}]
[37,509,"عزالدين عبدالله سلطان",7,6,8,7,7,null,10,10,{"$f":"SUM(الجدول3[[#This Row],[الإســـــلامية]:[الرياضــــــــة]])","v":55},{"$f":"NoToTxt(الجدول3[[#This Row],[المجموع رقما]],\".\",\".\")","v":"خمس وخمسون ."},{"$f":"COUNTIF(الجدول3[[#This Row],[الإســـــلامية]:[الرياضــــــــة]],\"<5\")","v":0},{"$f":"VLOOKUP(الجدول3[[#This Row],[عدد الرسوب]],$AO$2:$AP$4,2)","v":"ناجح"}]
[38,474,"علي مسعود علي",8,8,9,7,10,null,10,10,{"$f":"SUM(الجدول3[[#This Row],[الإســـــلامية]:[الرياضــــــــة]])","v":62},{"$f":"NoToTxt(الجدول3[[#This Row],[المجموع رقما]],\".\",\".\")","v":"اثنتان وستون ."},{"$f":"COUNTIF(الجدول3[[#This Row],[الإســـــلامية]:[الرياضــــــــة]],\"<5\")","v":0},{"$f":"VLOOKUP(الجدول3[[#This Row],[عدد الرسوب]],$AO$2:$AP$4,2)","v":"ناجح"}]
[39,510,"عماد علي حسين",7,6,7,7,8,null,10,10,{"$f":"SUM(الجدول3[[#This Row],[الإســـــلامية]:[الرياضــــــــة]])","v":55},{"$f":"NoToTxt(الجدول3[[#This Row],[المجموع رقما]],\".\",\".\")","v":"خمس وخمسون ."},{"$f":"COUNTIF(الجدول3[[#This Row],[الإســـــلامية]:[الرياضــــــــة]],\"<5\")","v":0},{"$f":"VLOOKUP(الجدول3[[#This Row],[عدد الرسوب]],$AO$2:$AP$4,2)","v":"ناجح"}]
[40,511,"فاطمة ميزر عبدالله ",7,7,7,8,8,null,10,10,{"$f":"SUM(الجدول3[[#This Row],[الإســـــلامية]:[الرياضــــــــة]])","v":57},{"$f":"NoToTxt(الجدول3[[#This Row],[المجموع رقما]],\".\",\".\")","v":"سبع وخمسون ."},{"$f":"COUNTIF(الجدول3[[#This Row],[الإســـــلامية]:[الرياضــــــــة]],\"<5\")","v":0},{"$f":"VLOOKUP(الجدول3[[#This Row],[عدد الرسوب]],$AO$2:$AP$4,2)","v":"ناجح"}]
[41,512,"قيصر محمد الياس",10,9,10,10,10," ",10,10,{"$f":"SUM(الجدول3[[#This Row],[الإســـــلامية]:[الرياضــــــــة]])","v":69},{"$f":"NoToTxt(الجدول3[[#This Row],[المجموع رقما]],\".\",\".\")","v":"تسع وستون ."},{"$f":"COUNTIF(الجدول3[[#This Row],[الإســـــلامية]:[الرياضــــــــة]],\"<5\")","v":0},{"$f":"VLOOKUP(الجدول3[[#This Row],[عدد الرسوب]],$AO$2:$AP$4,2)","v":"ناجح"}]
[42,513,"مالك علي احمد",7,6,8,5,8,null,10,10,{"$f":"SUM(الجدول3[[#This Row],[الإســـــلامية]:[الرياضــــــــة]])","v":54},{"$f":"NoToTxt(الجدول3[[#This Row],[المجموع رقما]],\".\",\".\")","v":"أربع وخمسون ."},{"$f":"COUNTIF(الجدول3[[#This Row],[الإســـــلامية]:[الرياضــــــــة]],\"<5\")","v":0},{"$f":"VLOOKUP(الجدول3[[#This Row],[عدد الرسوب]],$AO$2:$AP$4,2)","v":"ناجح"}]
[43,514,"محمد علي حمد",7,7,8,7,8,null,10,10,{"$f":"SUM(الجدول3[[#This Row],[الإســـــلامية]:[الرياضــــــــة]])","v":57},{"$f":"NoToTxt(الجدول3[[#This Row],[المجموع رقما]],\".\",\".\")","v":"سبع وخمسون ."},{"$f":"COUNTIF(الجدول3[[#This Row],[الإســـــلامية]:[الرياضــــــــة]],\"<5\")","v":0},{"$f":"VLOOKUP(الجدول3[[#This Row],[عدد الرسوب]],$AO$2:$AP$4,2)","v":"ناجح"}]
[44,531,"محمد ياسر فرحان",9,8,10,7,9,null,10,10,{"$f":"SUM(الجدول3[[#This Row],[الإســـــلامية]:[الرياضــــــــة]])","v":63},{"$f":"NoToTxt(الجدول3[[#This Row],[المجموع رقما]],\".\",\".\")","v":"ثلاث وستون ."},{"$f":"COUNTIF(الجدول3[[#This Row],[الإســـــلامية]:[الرياضــــــــة]],\"<5\")","v":0},{"$f":"VLOOKUP(الجدول3[[#This Row],[عدد الرسوب]],$AO$2:$AP$4,2)","v":"ناجح"}]
[45,515,"محمود درب عبدالله",2,2,7,3,3,null,8,8,{"$f":"SUM(الجدول3[[#This Row],[الإســـــلامية]:[الرياضــــــــة]])","v":33},{"$f":"NoToTxt(الجدول3[[#This Row],[المجموع رقما]],\".\",\".\")","v":"ثلاث وثلاثون ."},{"$f":"COUNTIF(الجدول3[[#This Row],[الإســـــلامية]:[الرياضــــــــة]],\"<5\")","v":4},{"$f":"VLOOKUP(الجدول3[[#This Row],[عدد الرسوب]],$AO$2:$AP$4,2)","v":"راسب"}]
[46,516,"مصطفى عبدالله محمد",7,7,9,7,9,null,10,10,{"$f":"SUM(الجدول3[[#This Row],[الإســـــلامية]:[الرياضــــــــة]])","v":59},{"$f":"NoToTxt(الجدول3[[#This Row],[المجموع رقما]],\".\",\".\")","v":"تسع وخمسون ."},{"$f":"COUNTIF(الجدول3[[#This Row],[الإســـــلامية]:[الرياضــــــــة]],\"<5\")","v":0},{"$f":"VLOOKUP(الجدول3[[#This Row],[عدد الرسوب]],$AO$2:$AP$4,2)","v":"ناجح"}]
[47,447,"منار قائد محمود",7,8,9,7,9,null,10,10,{"$f":"SUM(الجدول3[[#This Row],[الإســـــلامية]:[الرياضــــــــة]])","v":60},{"$f":"NoToTxt(الجدول3[[#This Row],[المجموع رقما]],\".\",\".\")","v":"ستون ."},{"$f":"COUNTIF(الجدول3[[#This Row],[الإســـــلامية]:[الرياضــــــــة]],\"<5\")","v":0},{"$f":"VLOOKUP(الجدول3[[#This Row],[عدد الرسوب]],$AO$2:$AP$4,2)","v":"ناجح"}]
[48,517,"منتهى محمود حسن",7,6,9,6,9,null,10,10,{"$f":"SUM(الجدول3[[#This Row],[الإســـــلامية]:[الرياضــــــــة]])","v":57},{"$f":"NoToTxt(الجدول3[[#This Row],[المجموع رقما]],\".\",\".\")","v":"سبع وخمسون ."},{"$f":"COUNTIF(الجدول3[[#This Row],[الإســـــلامية]:[الرياضــــــــة]],\"<5\")","v":0},{"$f":"VLOOKUP(الجدول3[[#This Row],[عدد الرسوب]],$AO$2:$AP$4,2)","v":"ناجح"}]
[49,527,"مهدي إبراهيم صالح",10,10,10,10,10," ",10,10,{"$f":"SUM(الجدول3[[#This Row],[الإســـــلامية]:[الرياضــــــــة]])","v":70},{"$f":"NoToTxt(الجدول3[[#This Row],[المجموع رقما]],\".\",\".\")","v":"سبعون ."},{"$f":"COUNTIF(الجدول3[[#This Row],[الإســـــلامية]:[الرياضــــــــة]],\"<5\")","v":0},{"$f":"VLOOKUP(الجدول3[[#This Row],[عدد الرسوب]],$AO$2:$AP$4,2)","v":"ناجح"}]
[50,null,"ميعاد احمد عبد",6,6,7,6,8,null,9,9,{"$f":"SUM(الجدول3[[#This Row],[الإســـــلامية]:[الرياضــــــــة]])","v":51},{"$f":"NoToTxt(الجدول3[[#This Row],[المجموع رقما]],\".\",\".\")","v":"احدى وخمسون ."},{"$f":"COUNTIF(الجدول3[[#This Row],[الإســـــلامية]:[الرياضــــــــة]],\"<5\")","v":0},{"$f":"VLOOKUP(الجدول3[[#This Row],[عدد الرسوب]],$AO$2:$AP$4,2)","v":"ناجح"}]
[51,450,"نور باسل فرحان",9,7,8,8,8,null,10,10,{"$f":"SUM(الجدول3[[#This Row],[الإســـــلامية]:[الرياضــــــــة]])","v":60},{"$f":"NoToTxt(الجدول3[[#This Row],[المجموع رقما]],\".\",\".\")","v":"ستون ."},{"$f":"COUNTIF(الجدول3[[#This Row],[الإســـــلامية]:[الرياضــــــــة]],\"<5\")","v":0},{"$f":"VLOOKUP(الجدول3[[#This Row],[عدد الرسوب]],$AO$2:$AP$4,2)","v":"ناجح"}]
[52,518,"نور شاكر محمود",5,7,7,8,8,null,10,10,{"$f":"SUM(الجدول3[[#This Row],[الإســـــلامية]:[الرياضــــــــة]])","v":55},{"$f":"NoToTxt(الجدول3[[#This Row],[المجموع رقما]],\".\",\".\")","v":"خمس وخمسون ."},{"$f":"COUNTIF(الجدول3[[#This Row],[الإســـــلامية]:[الرياضــــــــة]],\"<5\")","v":0},{"$f":"VLOOKUP(الجدول3[[#This Row],[عدد الرسوب]],$AO$2:$AP$4,2)","v":"ناجح"}]
[53,519,"نور نبيل سلطان",9,8,8,9,9,null,10,10,{"$f":"SUM(الجدول3[[#This Row],[الإســـــلامية]:[الرياضــــــــة]])","v":63},{"$f":"NoToTxt(الجدول3[[#This Row],[المجموع رقما]],\".\",\".\")","v":"ثلاث وستون ."},{"$f":"COUNTIF(الجدول3[[#This Row],[الإســـــلامية]:[الرياضــــــــة]],\"<5\")","v":0},{"$f":"VLOOKUP(الجدول3[[#This Row],[عدد الرسوب]],$AO$2:$AP$4,2)","v":"ناجح"}]
[54,520,"هاجر سليمان احمد",7,7,9,9,9,null,10,10,{"$f":"SUM(الجدول3[[#This Row],[الإســـــلامية]:[الرياضــــــــة]])","v":61},{"$f":"NoToTxt(الجدول3[[#This Row],[المجموع رقما]],\".\",\".\")","v":"احدى وستون ."},{"$f":"COUNTIF(الجدول3[[#This Row],[الإســـــلامية]:[الرياضــــــــة]],\"<5\")","v":0},{"$f":"VLOOKUP(الجدول3[[#This Row],[عدد الرسوب]],$AO$2:$AP$4,2)","v":"ناجح"}]
[55,521,"هدى عصام سلطان",10,10,7,9,8,null,10,10,{"$f":"SUM(الجدول3[[#This Row],[الإســـــلامية]:[الرياضــــــــة]])","v":64},{"$f":"NoToTxt(الجدول3[[#This Row],[المجموع رقما]],\".\",\".\")","v":"أربع وستون ."},{"$f":"COUNTIF(الجدول3[[#This Row],[الإســـــلامية]:[الرياضــــــــة]],\"<5\")","v":0},{"$f":"VLOOKUP(الجدول3[[#This Row],[عدد الرسوب]],$AO$2:$AP$4,2)","v":"ناجح"}]
[56,522,"ياسر ميسر إبراهيم",10,10,10,10,10," ",10,10,{"$f":"SUM(الجدول3[[#This Row],[الإســـــلامية]:[الرياضــــــــة]])","v":70},{"$f":"NoToTxt(الجدول3[[#This Row],[المجموع رقما]],\".\",\".\")","v":"سبعون ."},{"$f":"COUNTIF(الجدول3[[#This Row],[الإســـــلامية]:[الرياضــــــــة]],\"<5\")","v":0},{"$f":"VLOOKUP(الجدول3[[#This Row],[عدد الرسوب]],$AO$2:$AP$4,2)","v":"ناجح"}]
[57,524,"ياسمين طه عسكر",7,7,8,7,8,null,10,10,{"$f":"SUM(الجدول3[[#This Row],[الإســـــلامية]:[الرياضــــــــة]])","v":57},{"$f":"NoToTxt(الجدول3[[#This Row],[المجموع رقما]],\".\",\".\")","v":"سبع وخمسون ."},{"$f":"COUNTIF(الجدول3[[#This Row],[الإســـــلامية]:[الرياضــــــــة]],\"<5\")","v":0},{"$f":"VLOOKUP(الجدول3[[#This Row],[عدد الرسوب]],$AO$2:$AP$4,2)","v":"ناجح"}]
[58,525,"ياسمين عدي الياس",10,10,10,10,10," ",10,10,{"$f":"SUM(الجدول3[[#This Row],[الإســـــلامية]:[الرياضــــــــة]])","v":70},{"$f":"NoToTxt(الجدول3[[#This Row],[المجموع رقما]],\".\",\".\")","v":"سبعون ."},{"$f":"COUNTIF(الجدول3[[#This Row],[الإســـــلامية]:[الرياضــــــــة]],\"<5\")","v":0},{"$f":"VLOOKUP(الجدول3[[#This Row],[عدد الرسوب]],$AO$2:$AP$4,2)","v":"ناجح"}]
[59,526,"يقين احمد حسن",7,6,7,7,7,null,10,10,{"$f":"SUM(الجدول3[[#This Row],[الإســـــلامية]:[الرياضــــــــة]])","v":54},{"$f":"NoToTxt(الجدول3[[#This Row],[المجموع رقما]],\".\",\".\")","v":"أربع وخمسون ."},{"$f":"COUNTIF(الجدول3[[#This Row],[الإســـــلامية]:[الرياضــــــــة]],\"<5\")","v":0},{"$f":"VLOOKUP(الجدول3[[#This Row],[عدد الرسوب]],$AO$2:$AP$4,2)","v":"ناجح"}]
[60,523,"يونس يوسف سلطان",9,8,10,9,9,null,10,10,{"$f":"SUM(الجدول3[[#This Row],[الإســـــلامية]:[الرياضــــــــة]])","v":65},{"$f":"NoToTxt(الجدول3[[#This Row],[المجموع رقما]],\".\",\".\")","v":"خمس وستون ."},{"$f":"COUNTIF(الجدول3[[#This Row],[الإســـــلامية]:[الرياضــــــــة]],\"<5\")","v":0},{"$f":"VLOOKUP(الجدول3[[#This Row],[عدد الرسوب]],$AO$2:$AP$4,2)","v":"ناجح"}]
[]
[]
[]
[]
[]
[]
[]
[]
[]
[]
[]
[]
[]
[]
[]
[]
[]
[]
[1,415,"ابتهال ماهر ناظم",10,10,10,10,10," ",10,10,{"$f":"SUM(الجدول3[[#This Row],[الإســـــلامية]:[الرياضــــــــة]])","v":70},{"$f":"NoToTxt(الجدول3[[#This Row],[المجموع رقما]],\".\",\".\")","v":"سبعون ."},{"$f":"COUNTIF(الجدول3[[#This Row],[الإســـــلامية]:[الرياضــــــــة]],\"<5\")","v":0},{"$f":"VLOOKUP(الجدول3[[#This Row],[عدد الرسوب]],$AO$2:$AP$4,2)","v":"ناجح"}]
[2,417,"احمد محمد احمد",8,6,8,6,7,null,8,8,{"$f":"SUM(الجدول3[[#This Row],[الإســـــلامية]:[الرياضــــــــة]])","v":51},{"$f":"NoToTxt(الجدول3[[#This Row],[المجموع رقما]],\".\",\".\")","v":"احدى وخمسون ."},{"$f":"COUNTIF(الجدول3[[#This Row],[الإســـــلامية]:[الرياضــــــــة]],\"<5\")","v":0},{"$f":"VLOOKUP(الجدول3[[#This Row],[عدد الرسوب]],$AO$2:$AP$4,2)","v":"ناجح"}]
[3,419,"أسامة خالد صالح",10,8,10,9,9,null,10,10,{"$f":"SUM(الجدول3[[#This Row],[الإســـــلامية]:[الرياضــــــــة]])","v":66},{"$f":"NoToTxt(الجدول3[[#This Row],[المجموع رقما]],\".\",\".\")","v":"ست وستون ."},{"$f":"COUNTIF(الجدول3[[#This Row],[الإســـــلامية]:[الرياضــــــــة]],\"<5\")","v":0},{"$f":"VLOOKUP(الجدول3[[#This Row],[عدد الرسوب]],$AO$2:$AP$4,2)","v":"ناجح"}]
[4,420,"اسلام عدي الياس",10,10,10,10,10," ",10,10,{"$f":"SUM(الجدول3[[#This Row],[الإســـــلامية]:[الرياضــــــــة]])","v":70},{"$f":"NoToTxt(الجدول3[[#This Row],[المجموع رقما]],\".\",\".\")","v":"سبعون ."},{"$f":"COUNTIF(الجدول3[[#This Row],[الإســـــلامية]:[الرياضــــــــة]],\"<5\")","v":0},{"$f":"VLOOKUP(الجدول3[[#This Row],[عدد الرسوب]],$AO$2:$AP$4,2)","v":"ناجح"}]
[5,421,"اسيل جرجيس محمود",9,2,7,3,7,null,8,8,{"$f":"SUM(الجدول3[[#This Row],[الإســـــلامية]:[الرياضــــــــة]])","v":44},{"$f":"NoToTxt(الجدول3[[#This Row],[المجموع رقما]],\".\",\".\")","v":"أربع وأربعون ."},{"$f":"COUNTIF(الجدول3[[#This Row],[الإســـــلامية]:[الرياضــــــــة]],\"<5\")","v":2},{"$f":"VLOOKUP(الجدول3[[#This Row],[عدد الرسوب]],$AO$2:$AP$4,2)","v":"مكمل"}]
[6,423,"انس منهل محمد",10,10,10,10,10," ",10,10,{"$f":"SUM(الجدول3[[#This Row],[الإســـــلامية]:[الرياضــــــــة]])","v":70},{"$f":"NoToTxt(الجدول3[[#This Row],[المجموع رقما]],\".\",\".\")","v":"سبعون ."},{"$f":"COUNTIF(الجدول3[[#This Row],[الإســـــلامية]:[الرياضــــــــة]],\"<5\")","v":0},{"$f":"VLOOKUP(الجدول3[[#This Row],[عدد الرسوب]],$AO$2:$AP$4,2)","v":"ناجح"}]
[7,336,"اياد يونس محمد",8,6,8,6,7,null,8,8,{"$f":"SUM(الجدول3[[#This Row],[الإســـــلامية]:[الرياضــــــــة]])","v":51},{"$f":"NoToTxt(الجدول3[[#This Row],[المجموع رقما]],\".\",\".\")","v":"احدى وخمسون ."},{"$f":"COUNTIF(الجدول3[[#This Row],[الإســـــلامية]:[الرياضــــــــة]],\"<5\")","v":0},{"$f":"VLOOKUP(الجدول3[[#This Row],[عدد الرسوب]],$AO$2:$AP$4,2)","v":"ناجح"}]
[8,464,"بتول عبدالله إبراهيم",10,8,10,8,10,null,10,10,{"$f":"SUM(الجدول3[[#This Row],[الإســـــلامية]:[الرياضــــــــة]])","v":66},{"$f":"NoToTxt(الجدول3[[#This Row],[المجموع رقما]],\".\",\".\")","v":"ست وستون ."},{"$f":"COUNTIF(الجدول3[[#This Row],[الإســـــلامية]:[الرياضــــــــة]],\"<5\")","v":0},{"$f":"VLOOKUP(الجدول3[[#This Row],[عدد الرسوب]],$AO$2:$AP$4,2)","v":"ناجح"}]
[9,338,"براء عبدالله سليمان",10,2,8,3,7,null,8,8,{"$f":"SUM(الجدول3[[#This Row],[الإســـــلامية]:[الرياضــــــــة]])","v":46},{"$f":"NoToTxt(الجدول3[[#This Row],[المجموع رقما]],\".\",\".\")","v":"ست وأربعون ."},{"$f":"COUNTIF(الجدول3[[#This Row],[الإســـــلامية]:[الرياضــــــــة]],\"<5\")","v":2},{"$f":"VLOOKUP(الجدول3[[#This Row],[عدد الرسوب]],$AO$2:$AP$4,2)","v":"مكمل"}]
[10,339,"تبارك احمد محمود",10,6,8,8,7,null,8,8,{"$f":"SUM(الجدول3[[#This Row],[الإســـــلامية]:[الرياضــــــــة]])","v":55},{"$f":"NoToTxt(الجدول3[[#This Row],[المجموع رقما]],\".\",\".\")","v":"خمس وخمسون ."},{"$f":"COUNTIF(الجدول3[[#This Row],[الإســـــلامية]:[الرياضــــــــة]],\"<5\")","v":0},{"$f":"VLOOKUP(الجدول3[[#This Row],[عدد الرسوب]],$AO$2:$AP$4,2)","v":"ناجح"}]
[11,425,"تمارا خالد حسين",6,7,8,7,7,null,8,9,{"$f":"SUM(الجدول3[[#This Row],[الإســـــلامية]:[الرياضــــــــة]])","v":52},{"$f":"NoToTxt(الجدول3[[#This Row],[المجموع رقما]],\".\",\".\")","v":"اثنتان وخمسون ."},{"$f":"COUNTIF(الجدول3[[#This Row],[الإســـــلامية]:[الرياضــــــــة]],\"<5\")","v":0},{"$f":"VLOOKUP(الجدول3[[#This Row],[عدد الرسوب]],$AO$2:$AP$4,2)","v":"ناجح"}]
[12,349,"رحمة حسين جاسم",10,6,8,7,7,null,8,8,{"$f":"SUM(الجدول3[[#This Row],[الإســـــلامية]:[الرياضــــــــة]])","v":54},{"$f":"NoToTxt(الجدول3[[#This Row],[المجموع رقما]],\".\",\".\")","v":"أربع وخمسون ."},{"$f":"COUNTIF(الجدول3[[#This Row],[الإســـــلامية]:[الرياضــــــــة]],\"<5\")","v":0},{"$f":"VLOOKUP(الجدول3[[#This Row],[عدد الرسوب]],$AO$2:$AP$4,2)","v":"ناجح"}]
[13,426,"رسل عبدالله نجم",10,8,9,9,9,null,10,10,{"$f":"SUM(الجدول3[[#This Row],[الإســـــلامية]:[الرياضــــــــة]])","v":65},{"$f":"NoToTxt(الجدول3[[#This Row],[المجموع رقما]],\".\",\".\")","v":"خمس وستون ."},{"$f":"COUNTIF(الجدول3[[#This Row],[الإســـــلامية]:[الرياضــــــــة]],\"<5\")","v":0},{"$f":"VLOOKUP(الجدول3[[#This Row],[عدد الرسوب]],$AO$2:$AP$4,2)","v":"ناجح"}]
[14,null,"زينة احمد عبد",7,9,8,8,10,null,8,9,{"$f":"SUM(الجدول3[[#This Row],[الإســـــلامية]:[الرياضــــــــة]])","v":59},{"$f":"NoToTxt(الجدول3[[#This Row],[المجموع رقما]],\".\",\".\")","v":"تسع وخمسون ."},{"$f":"COUNTIF(الجدول3[[#This Row],[الإســـــلامية]:[الرياضــــــــة]],\"<5\")","v":0},{"$f":"VLOOKUP(الجدول3[[#This Row],[عدد الرسوب]],$AO$2:$AP$4,2)","v":"ناجح"}]
[15,274,"سالم علاء عبد",7,6,8,7,7,null,8,8,{"$f":"SUM(الجدول3[[#This Row],[الإســـــلامية]:[الرياضــــــــة]])","v":51},{"$f":"NoToTxt(الجدول3[[#This Row],[المجموع رقما]],\".\",\".\")","v":"احدى وخمسون ."},{"$f":"COUNTIF(الجدول3[[#This Row],[الإســـــلامية]:[الرياضــــــــة]],\"<5\")","v":0},{"$f":"VLOOKUP(الجدول3[[#This Row],[عدد الرسوب]],$AO$2:$AP$4,2)","v":"ناجح"}]
[16,428,"سبأ محمود محمد",5,2,7,2,6,null,8,8,{"$f":"SUM(الجدول3[[#This Row],[الإســـــلامية]:[الرياضــــــــة]])","v":38},{"$f":"NoToTxt(الجدول3[[#This Row],[المجموع رقما]],\".\",\".\")","v":"ثماني وثلاثون ."},{"$f":"COUNTIF(الجدول3[[#This Row],[الإســـــلامية]:[الرياضــــــــة]],\"<5\")","v":2},{"$f":"VLOOKUP(الجدول3[[#This Row],[عدد الرسوب]],$AO$2:$AP$4,2)","v":"مكمل"}]
[17,275,"سعد قائد محمود",10,6,7,6,6,null,8,8,{"$f":"SUM(الجدول3[[#This Row],[الإســـــلامية]:[الرياضــــــــة]])","v":51},{"$f":"NoToTxt(الجدول3[[#This Row],[المجموع رقما]],\".\",\".\")","v":"احدى وخمسون ."},{"$f":"COUNTIF(الجدول3[[#This Row],[الإســـــلامية]:[الرياضــــــــة]],\"<5\")","v":0},{"$f":"VLOOKUP(الجدول3[[#This Row],[عدد الرسوب]],$AO$2:$AP$4,2)","v":"ناجح"}]
[18,358,"سلطان إبراهيم سلطان",8,2,7,2,6,null,8,8,{"$f":"SUM(الجدول3[[#This Row],[الإســـــلامية]:[الرياضــــــــة]])","v":41},{"$f":"NoToTxt(الجدول3[[#This Row],[المجموع رقما]],\".\",\".\")","v":"احدى وأربعون ."},{"$f":"COUNTIF(الجدول3[[#This Row],[الإســـــلامية]:[الرياضــــــــة]],\"<5\")","v":2},{"$f":"VLOOKUP(الجدول3[[#This Row],[عدد الرسوب]],$AO$2:$AP$4,2)","v":"مكمل"}]
[19,470,"عائشة عبد إبراهيم",10,10,10,10,10,null,10,10,{"$f":"SUM(الجدول3[[#This Row],[الإســـــلامية]:[الرياضــــــــة]])","v":70},{"$f":"NoToTxt(الجدول3[[#This Row],[المجموع رقما]],\".\",\".\")","v":"سبعون ."},{"$f":"COUNTIF(الجدول3[[#This Row],[الإســـــلامية]:[الرياضــــــــة]],\"<5\")","v":0},{"$f":"VLOOKUP(الجدول3[[#This Row],[عدد الرسوب]],$AO$2:$AP$4,2)","v":"ناجح"}]
[20,432,"عائشة علي حسين",10,8,10,8,9,null,10,10,{"$f":"SUM(الجدول3[[#This Row],[الإســـــلامية]:[الرياضــــــــة]])","v":65},{"$f":"NoToTxt(الجدول3[[#This Row],[المجموع رقما]],\".\",\".\")","v":"خمس وستون ."},{"$f":"COUNTIF(الجدول3[[#This Row],[الإســـــلامية]:[الرياضــــــــة]],\"<5\")","v":0},{"$f":"VLOOKUP(الجدول3[[#This Row],[عدد الرسوب]],$AO$2:$AP$4,2)","v":"ناجح"}]
[21,433,"عائشة محمد ناظم",10,8,10,8,9,null,10,10,{"$f":"SUM(الجدول3[[#This Row],[الإســـــلامية]:[الرياضــــــــة]])","v":65},{"$f":"NoToTxt(الجدول3[[#This Row],[المجموع رقما]],\".\",\".\")","v":"خمس وستون ."},{"$f":"COUNTIF(الجدول3[[#This Row],[الإســـــلامية]:[الرياضــــــــة]],\"<5\")","v":0},{"$f":"VLOOKUP(الجدول3[[#This Row],[عدد الرسوب]],$AO$2:$AP$4,2)","v":"ناجح"}]
[22,435,"عبدالعزيز شاكر محي الدين",10,10,10,10,10," ",10,10,{"$f":"SUM(الجدول3[[#This Row],[الإســـــلامية]:[الرياضــــــــة]])","v":70},{"$f":"NoToTxt(الجدول3[[#This Row],[المجموع رقما]],\".\",\".\")","v":"سبعون ."},{"$f":"COUNTIF(الجدول3[[#This Row],[الإســـــلامية]:[الرياضــــــــة]],\"<5\")","v":0},{"$f":"VLOOKUP(الجدول3[[#This Row],[عدد الرسوب]],$AO$2:$AP$4,2)","v":"ناجح"}]
[23,436,"عبدالله ميزر عبدالله ",10,10,10,10,10," ",10,10,{"$f":"SUM(الجدول3[[#This Row],[الإســـــلامية]:[الرياضــــــــة]])","v":70},{"$f":"NoToTxt(الجدول3[[#This Row],[المجموع رقما]],\".\",\".\")","v":"سبعون ."},{"$f":"COUNTIF(الجدول3[[#This Row],[الإســـــلامية]:[الرياضــــــــة]],\"<5\")","v":0},{"$f":"VLOOKUP(الجدول3[[#This Row],[عدد الرسوب]],$AO$2:$AP$4,2)","v":"ناجح"}]
[24,286,"عبدالله درب عبدالله",8,6,7,6,6,null,8,8,{"$f":"SUM(الجدول3[[#This Row],[الإســـــلامية]:[الرياضــــــــة]])","v":49},{"$f":"NoToTxt(الجدول3[[#This Row],[المجموع رقما]],\".\",\".\")","v":"تسع وأربعون ."},{"$f":"COUNTIF(الجدول3[[#This Row],[الإســـــلامية]:[الرياضــــــــة]],\"<5\")","v":0},{"$f":"VLOOKUP(الجدول3[[#This Row],[عدد الرسوب]],$AO$2:$AP$4,2)","v":"ناجح"}]
[25,95,"عبدالله محمود حسين",10,6,8,6,6,null,8,8,{"$f":"SUM(الجدول3[[#This Row],[الإســـــلامية]:[الرياضــــــــة]])","v":52},{"$f":"NoToTxt(الجدول3[[#This Row],[المجموع رقما]],\".\",\".\")","v":"اثنتان وخمسون ."},{"$f":"COUNTIF(الجدول3[[#This Row],[الإســـــلامية]:[الرياضــــــــة]],\"<5\")","v":0},{"$f":"VLOOKUP(الجدول3[[#This Row],[عدد الرسوب]],$AO$2:$AP$4,2)","v":"ناجح"}]
[26,366,"عبد الملك يونس حسين",5,2,7,2,3,null,8,8,{"$f":"SUM(الجدول3[[#This Row],[الإســـــلامية]:[الرياضــــــــة]])","v":35},{"$f":"NoToTxt(الجدول3[[#This Row],[المجموع رقما]],\".\",\".\")","v":"خمس وثلاثون ."},{"$f":"COUNTIF(الجدول3[[#This Row],[الإســـــلامية]:[الرياضــــــــة]],\"<5\")","v":3},{"$f":"VLOOKUP(الجدول3[[#This Row],[عدد الرسوب]],$AO$2:$AP$4,2)","v":"مكمل"}]
[27,282,"علي اسعد عبدالله",5,2,7,2,3,null,8,8,{"$f":"SUM(الجدول3[[#This Row],[الإســـــلامية]:[الرياضــــــــة]])","v":35},{"$f":"NoToTxt(الجدول3[[#This Row],[المجموع رقما]],\".\",\".\")","v":"خمس وثلاثون ."},{"$f":"COUNTIF(الجدول3[[#This Row],[الإســـــلامية]:[الرياضــــــــة]],\"<5\")","v":3},{"$f":"VLOOKUP(الجدول3[[#This Row],[عدد الرسوب]],$AO$2:$AP$4,2)","v":"مكمل"}]
[28,370,"علي محمود عبدالله",5,2,7,2,3,null,8,8,{"$f":"SUM(الجدول3[[#This Row],[الإســـــلامية]:[الرياضــــــــة]])","v":35},{"$f":"NoToTxt(الجدول3[[#This Row],[المجموع رقما]],\".\",\".\")","v":"خمس وثلاثون ."},{"$f":"COUNTIF(الجدول3[[#This Row],[الإســـــلامية]:[الرياضــــــــة]],\"<5\")","v":3},{"$f":"VLOOKUP(الجدول3[[#This Row],[عدد الرسوب]],$AO$2:$AP$4,2)","v":"مكمل"}]
[29,395,"عمر خيري طامي",10,6,8,7,6,null,9,10,{"$f":"SUM(الجدول3[[#This Row],[الإســـــلامية]:[الرياضــــــــة]])","v":56},{"$f":"NoToTxt(الجدول3[[#This Row],[المجموع رقما]],\".\",\".\")","v":"ست وخمسون ."},{"$f":"COUNTIF(الجدول3[[#This Row],[الإســـــلامية]:[الرياضــــــــة]],\"<5\")","v":0},{"$f":"VLOOKUP(الجدول3[[#This Row],[عدد الرسوب]],$AO$2:$AP$4,2)","v":"ناجح"}]
[30,439,"عمر عادل خلف",8,3,7,2,3,null,8,8,{"$f":"SUM(الجدول3[[#This Row],[الإســـــلامية]:[الرياضــــــــة]])","v":39},{"$f":"NoToTxt(الجدول3[[#This Row],[المجموع رقما]],\".\",\".\")","v":"تسع وثلاثون ."},{"$f":"COUNTIF(الجدول3[[#This Row],[الإســـــلامية]:[الرياضــــــــة]],\"<5\")","v":3},{"$f":"VLOOKUP(الجدول3[[#This Row],[عدد الرسوب]],$AO$2:$AP$4,2)","v":"مكمل"}]
[31,364,"عمر محمد صالح",8,6,7,6,7,null,8,8,{"$f":"SUM(الجدول3[[#This Row],[الإســـــلامية]:[الرياضــــــــة]])","v":50},{"$f":"NoToTxt(الجدول3[[#This Row],[المجموع رقما]],\".\",\".\")","v":"خمسون ."},{"$f":"COUNTIF(الجدول3[[#This Row],[الإســـــلامية]:[الرياضــــــــة]],\"<5\")","v":0},{"$f":"VLOOKUP(الجدول3[[#This Row],[عدد الرسوب]],$AO$2:$AP$4,2)","v":"ناجح"}]
[32,363,"عمران حازم خلف ",7,6,7,9,7,null,8,9,{"$f":"SUM(الجدول3[[#This Row],[الإســـــلامية]:[الرياضــــــــة]])","v":53},{"$f":"NoToTxt(الجدول3[[#This Row],[المجموع رقما]],\".\",\".\")","v":"ثلاث وخمسون ."},{"$f":"COUNTIF(الجدول3[[#This Row],[الإســـــلامية]:[الرياضــــــــة]],\"<5\")","v":0},{"$f":"VLOOKUP(الجدول3[[#This Row],[عدد الرسوب]],$AO$2:$AP$4,2)","v":"ناجح"}]
[33,432,"فادي يونس حسين",10,10,10,10,10,null,10,10,{"$f":"SUM(الجدول3[[#This Row],[الإســـــلامية]:[الرياضــــــــة]])","v":70},{"$f":"NoToTxt(الجدول3[[#This Row],[المجموع رقما]],\".\",\".\")","v":"سبعون ."},{"$f":"COUNTIF(الجدول3[[#This Row],[الإســـــلامية]:[الرياضــــــــة]],\"<5\")","v":0},{"$f":"VLOOKUP(الجدول3[[#This Row],[عدد الرسوب]],$AO$2:$AP$4,2)","v":"ناجح"}]
[34,371,"فريال سليمان عبدالله",9,7,8,8,9,null,9,9,{"$f":"SUM(الجدول3[[#This Row],[الإســـــلامية]:[الرياضــــــــة]])","v":59},{"$f":"NoToTxt(الجدول3[[#This Row],[المجموع رقما]],\".\",\".\")","v":"تسع وخمسون ."},{"$f":"COUNTIF(الجدول3[[#This Row],[الإســـــلامية]:[الرياضــــــــة]],\"<5\")","v":0},{"$f":"VLOOKUP(الجدول3[[#This Row],[عدد الرسوب]],$AO$2:$AP$4,2)","v":"ناجح"}]
[35,372,"قاسم صالح محمد",5,2,7,2,3,null,8,8,{"$f":"SUM(الجدول3[[#This Row],[الإســـــلامية]:[الرياضــــــــة]])","v":35},{"$f":"NoToTxt(الجدول3[[#This Row],[المجموع رقما]],\".\",\".\")","v":"خمس وثلاثون ."},{"$f":"COUNTIF(الجدول3[[#This Row],[الإســـــلامية]:[الرياضــــــــة]],\"<5\")","v":3},{"$f":"VLOOKUP(الجدول3[[#This Row],[عدد الرسوب]],$AO$2:$AP$4,2)","v":"مكمل"}]
[36,375,"محمد نوار علي",10,6,7,6,8,null,9,8,{"$f":"SUM(الجدول3[[#This Row],[الإســـــلامية]:[الرياضــــــــة]])","v":54},{"$f":"NoToTxt(الجدول3[[#This Row],[المجموع رقما]],\".\",\".\")","v":"أربع وخمسون ."},{"$f":"COUNTIF(الجدول3[[#This Row],[الإســـــلامية]:[الرياضــــــــة]],\"<5\")","v":0},{"$f":"VLOOKUP(الجدول3[[#This Row],[عدد الرسوب]],$AO$2:$AP$4,2)","v":"ناجح"}]
[37,376,"محمودعلاء حسن",10,6,7,6,8,null,8,8,{"$f":"SUM(الجدول3[[#This Row],[الإســـــلامية]:[الرياضــــــــة]])","v":53},{"$f":"NoToTxt(الجدول3[[#This Row],[المجموع رقما]],\".\",\".\")","v":"ثلاث وخمسون ."},{"$f":"COUNTIF(الجدول3[[#This Row],[الإســـــلامية]:[الرياضــــــــة]],\"<5\")","v":0},{"$f":"VLOOKUP(الجدول3[[#This Row],[عدد الرسوب]],$AO$2:$AP$4,2)","v":"ناجح"}]
[38,444,"محمود علي عطية",10,9,10,10,10,null,10,10,{"$f":"SUM(الجدول3[[#This Row],[الإســـــلامية]:[الرياضــــــــة]])","v":69},{"$f":"NoToTxt(الجدول3[[#This Row],[المجموع رقما]],\".\",\".\")","v":"تسع وستون ."},{"$f":"COUNTIF(الجدول3[[#This Row],[الإســـــلامية]:[الرياضــــــــة]],\"<5\")","v":0},{"$f":"VLOOKUP(الجدول3[[#This Row],[عدد الرسوب]],$AO$2:$AP$4,2)","v":"ناجح"}]
[39,469,"مريم سليمان احمد",10,7,9,6,9,null,10,9,{"$f":"SUM(الجدول3[[#This Row],[الإســـــلامية]:[الرياضــــــــة]])","v":60},{"$f":"NoToTxt(الجدول3[[#This Row],[المجموع رقما]],\".\",\".\")","v":"ستون ."},{"$f":"COUNTIF(الجدول3[[#This Row],[الإســـــلامية]:[الرياضــــــــة]],\"<5\")","v":0},{"$f":"VLOOKUP(الجدول3[[#This Row],[عدد الرسوب]],$AO$2:$AP$4,2)","v":"ناجح"}]
[40,445,"مصطفى محمد احمد",9,7,9,8,9,null,10,10,{"$f":"SUM(الجدول3[[#This Row],[الإســـــلامية]:[الرياضــــــــة]])","v":62},{"$f":"NoToTxt(الجدول3[[#This Row],[المجموع رقما]],\".\",\".\")","v":"اثنتان وستون ."},{"$f":"COUNTIF(الجدول3[[#This Row],[الإســـــلامية]:[الرياضــــــــة]],\"<5\")","v":0},{"$f":"VLOOKUP(الجدول3[[#This Row],[عدد الرسوب]],$AO$2:$AP$4,2)","v":"ناجح"}]
[41,446,"ملاك يونس حسين",5,2,7,2,3,null,8,8,{"$f":"SUM(الجدول3[[#This Row],[الإســـــلامية]:[الرياضــــــــة]])","v":35},{"$f":"NoToTxt(الجدول3[[#This Row],[المجموع رقما]],\".\",\".\")","v":"خمس وثلاثون ."},{"$f":"COUNTIF(الجدول3[[#This Row],[الإســـــلامية]:[الرياضــــــــة]],\"<5\")","v":3},{"$f":"VLOOKUP(الجدول3[[#This Row],[عدد الرسوب]],$AO$2:$AP$4,2)","v":"مكمل"}]
[42,476,"منى مسعود علي",10,9,10,9,10,null,10,10,{"$f":"SUM(الجدول3[[#This Row],[الإســـــلامية]:[الرياضــــــــة]])","v":68},{"$f":"NoToTxt(الجدول3[[#This Row],[المجموع رقما]],\".\",\".\")","v":"ثماني وستون ."},{"$f":"COUNTIF(الجدول3[[#This Row],[الإســـــلامية]:[الرياضــــــــة]],\"<5\")","v":0},{"$f":"VLOOKUP(الجدول3[[#This Row],[عدد الرسوب]],$AO$2:$AP$4,2)","v":"ناجح"}]
[43,448,"مهى منصور محمد",10,9,10,9,10,null,10,10,{"$f":"SUM(الجدول3[[#This Row],[الإســـــلامية]:[الرياضــــــــة]])","v":68},{"$f":"NoToTxt(الجدول3[[#This Row],[المجموع رقما]],\".\",\".\")","v":"ثماني وستون ."},{"$f":"COUNTIF(الجدول3[[#This Row],[الإســـــلامية]:[الرياضــــــــة]],\"<5\")","v":0},{"$f":"VLOOKUP(الجدول3[[#This Row],[عدد الرسوب]],$AO$2:$AP$4,2)","v":"ناجح"}]
[44,449,"نبأ احمد حسن",9,9,8,8,9,null,10,10,{"$f":"SUM(الجدول3[[#This Row],[الإســـــلامية]:[الرياضــــــــة]])","v":63},{"$f":"NoToTxt(الجدول3[[#This Row],[المجموع رقما]],\".\",\".\")","v":"ثلاث وستون ."},{"$f":"COUNTIF(الجدول3[[#This Row],[الإســـــلامية]:[الرياضــــــــة]],\"<5\")","v":0},{"$f":"VLOOKUP(الجدول3[[#This Row],[عدد الرسوب]],$AO$2:$AP$4,2)","v":"ناجح"}]
[45,452,"وجدان محمد صالح",10,9,10,9,10,null,10,10,{"$f":"SUM(الجدول3[[#This Row],[الإســـــلامية]:[الرياضــــــــة]])","v":68},{"$f":"NoToTxt(الجدول3[[#This Row],[المجموع رقما]],\".\",\".\")","v":"ثماني وستون ."},{"$f":"COUNTIF(الجدول3[[#This Row],[الإســـــلامية]:[الرياضــــــــة]],\"<5\")","v":0},{"$f":"VLOOKUP(الجدول3[[#This Row],[عدد الرسوب]],$AO$2:$AP$4,2)","v":"ناجح"}]
[46,475,"ياسمين سالم نشوان",8,2,8,2,3,null,8,8,{"$f":"SUM(الجدول3[[#This Row],[الإســـــلامية]:[الرياضــــــــة]])","v":39},{"$f":"NoToTxt(الجدول3[[#This Row],[المجموع رقما]],\".\",\".\")","v":"تسع وثلاثون ."},{"$f":"COUNTIF(الجدول3[[#This Row],[الإســـــلامية]:[الرياضــــــــة]],\"<5\")","v":3},{"$f":"VLOOKUP(الجدول3[[#This Row],[عدد الرسوب]],$AO$2:$AP$4,2)","v":"مكمل"}]
[47,454,"يوسف جرجيس احمد",9,6,8,7,7,null,8,9,{"$f":"SUM(الجدول3[[#This Row],[الإســـــلامية]:[الرياضــــــــة]])","v":54},{"$f":"NoToTxt(الجدول3[[#This Row],[المجموع رقما]],\".\",\".\")","v":"أربع وخمسون ."},{"$f":"COUNTIF(الجدول3[[#This Row],[الإســـــلامية]:[الرياضــــــــة]],\"<5\")","v":0},{"$f":"VLOOKUP(الجدول3[[#This Row],[عدد الرسوب]],$AO$2:$AP$4,2)","v":"ناجح"}]
[48,384,"يوسف عدنان احمد",8,6,8,6,7,null,8,9,{"$f":"SUM(الجدول3[[#This Row],[الإســـــلامية]:[الرياضــــــــة]])","v":52},{"$f":"NoToTxt(الجدول3[[#This Row],[المجموع رقما]],\".\",\".\")","v":"اثنتان وخمسون ."},{"$f":"COUNTIF(الجدول3[[#This Row],[الإســـــلامية]:[الرياضــــــــة]],\"<5\")","v":0},{"$f":"VLOOKUP(الجدول3[[#This Row],[عدد الرسوب]],$AO$2:$AP$4,2)","v":"ناجح"}]
[49]
[50]
[51]
[52]
[53]
[54]
[55]
[56]
[57]
[58]
[59]
[60]
[61]
[62]
[63]
[64]
[65]
[66]
[67]
[68]
[69]
[70]
[71]
[72]
[73]
[74]
[75]
[76]
[77,null,null,null,null,null,null,null,null,null,null,{"$f":"SUM(الجدول3[[#This Row],[الإســـــلامية]:[الرياضــــــــة]])","v":0},{"$f":"NoToTxt(الجدول3[[#This Row],[المجموع رقما]],\".\",\".\")","v":"صفر"},{"$f":"COUNTIF(الجدول3[[#This Row],[الإســـــلامية]:[الرياضــــــــة]],\"<5\")","v":0},{"$f":"VLOOKUP(الجدول3[[#This Row],[عدد الرسوب]],$AO$2:$AP$4,2)","v":"ناجح"}]
[78,null,null,null,null,null,null,null,null,null,null,{"$f":"SUM(الجدول3[[#This Row],[الإســـــلامية]:[الرياضــــــــة]])","v":0},{"$f":"NoToTxt(الجدول3[[#This Row],[المجموع رقما]],\".\",\".\")","v":"صفر"},{"$f":"COUNTIF(الجدول3[[#This Row],[الإســـــلامية]:[الرياضــــــــة]],\"<5\")","v":0},{"$f":"VLOOKUP(الجدول3[[#This Row],[عدد الرسوب]],$AO$2:$AP$4,2)","v":"ناجح"}]
[79,null,null,null,null,null,null,null,null,null,null,{"$f":"SUM(الجدول3[[#This Row],[الإســـــلامية]:[الرياضــــــــة]])","v":0},{"$f":"NoToTxt(الجدول3[[#This Row],[المجموع رقما]],\".\",\".\")","v":"صفر"},{"$f":"COUNTIF(الجدول3[[#This Row],[الإســـــلامية]:[الرياضــــــــة]],\"<5\")","v":0},{"$f":"VLOOKUP(الجدول3[[#This Row],[عدد الرسوب]],$AO$2:$AP$4,2)","v":"ناجح"}]
[80,null,null,null,null,null,null,null,null,null,null,{"$f":"SUM(الجدول3[[#This Row],[الإســـــلامية]:[الرياضــــــــة]])","v":0},{"$f":"NoToTxt(الجدول3[[#This Row],[المجموع رقما]],\".\",\".\")","v":"صفر"},{"$f":"COUNTIF(الجدول3[[#This Row],[الإســـــلامية]:[الرياضــــــــة]],\"<5\")","v":0},{"$f":"VLOOKUP(الجدول3[[#This Row],[عدد الرسوب]],$AO$2:$AP$4,2)","v":"ناجح"}]
[81,null,null,null,null,null,null,null,null,null,null,{"$f":"SUM(الجدول3[[#This Row],[الإســـــلامية]:[الرياضــــــــة]])","v":0},{"$f":"NoToTxt(الجدول3[[#This Row],[المجموع رقما]],\".\",\".\")","v":"صفر"},{"$f":"COUNTIF(الجدول3[[#This Row],[الإســـــلامية]:[الرياضــــــــة]],\"<5\")","v":0},{"$f":"VLOOKUP(الجدول3[[#This Row],[عدد الرسوب]],$AO$2:$AP$4,2)","v":"ناجح"}]
[82,null,null,null,null,null,null,null,null,null,null,{"$f":"SUM(الجدول3[[#This Row],[الإســـــلامية]:[الرياضــــــــة]])","v":0},{"$f":"NoToTxt(الجدول3[[#This Row],[المجموع رقما]],\".\",\".\")","v":"صفر"},{"$f":"COUNTIF(الجدول3[[#This Row],[الإســـــلامية]:[الرياضــــــــة]],\"<5\")","v":0},{"$f":"VLOOKUP(الجدول3[[#This Row],[عدد الرسوب]],$AO$2:$AP$4,2)","v":"ناجح"}]
[83,null,null,null,null,null,null,null,null,null,null,{"$f":"SUM(الجدول3[[#This Row],[الإســـــلامية]:[الرياضــــــــة]])","v":0},{"$f":"NoToTxt(الجدول3[[#This Row],[المجموع رقما]],\".\",\".\")","v":"صفر"},{"$f":"COUNTIF(الجدول3[[#This Row],[الإســـــلامية]:[الرياضــــــــة]],\"<5\")","v":0},{"$f":"VLOOKUP(الجدول3[[#This Row],[عدد الرسوب]],$AO$2:$AP$4,2)","v":"ناجح"}]
[84,null,null,null,null,null,null,null,null,null,null,{"$f":"SUM(الجدول3[[#This Row],[الإســـــلامية]:[الرياضــــــــة]])","v":0},{"$f":"NoToTxt(الجدول3[[#This Row],[المجموع رقما]],\".\",\".\")","v":"صفر"},{"$f":"COUNTIF(الجدول3[[#This Row],[الإســـــلامية]:[الرياضــــــــة]],\"<5\")","v":0},{"$f":"VLOOKUP(الجدول3[[#This Row],[عدد الرسوب]],$AO$2:$AP$4,2)","v":"ناجح"}]
[85,null,null,null,null,null,null,null,null,null,null,{"$f":"SUM(الجدول3[[#This Row],[الإســـــلامية]:[الرياضــــــــة]])","v":0},{"$f":"NoToTxt(الجدول3[[#This Row],[المجموع رقما]],\".\",\".\")","v":"صفر"},{"$f":"COUNTIF(الجدول3[[#This Row],[الإســـــلامية]:[الرياضــــــــة]],\"<5\")","v":0},{"$f":"VLOOKUP(الجدول3[[#This Row],[عدد الرسوب]],$AO$2:$AP$4,2)","v":"ناجح"}]
[86,null,null,null,null,null,null,null,null,null,null,{"$f":"SUM(الجدول3[[#This Row],[الإســـــلامية]:[الرياضــــــــة]])","v":0},{"$f":"NoToTxt(الجدول3[[#This Row],[المجموع رقما]],\".\",\".\")","v":"صفر"},{"$f":"COUNTIF(الجدول3[[#This Row],[الإســـــلامية]:[الرياضــــــــة]],\"<5\")","v":0},{"$f":"VLOOKUP(الجدول3[[#This Row],[عدد الرسوب]],$AO$2:$AP$4,2)","v":"ناجح"}]
[87,null,null,null,null,null,null,null,null,null,null,{"$f":"SUM(الجدول3[[#This Row],[الإســـــلامية]:[الرياضــــــــة]])","v":0},{"$f":"NoToTxt(الجدول3[[#This Row],[المجموع رقما]],\".\",\".\")","v":"صفر"},{"$f":"COUNTIF(الجدول3[[#This Row],[الإســـــلامية]:[الرياضــــــــة]],\"<5\")","v":0},{"$f":"VLOOKUP(الجدول3[[#This Row],[عدد الرسوب]],$AO$2:$AP$4,2)","v":"ناجح"}]
[88,null,null,null,null,null,null,null,null,null,null,{"$f":"SUM(الجدول3[[#This Row],[الإســـــلامية]:[الرياضــــــــة]])","v":0},{"$f":"NoToTxt(الجدول3[[#This Row],[المجموع رقما]],\".\",\".\")","v":"صفر"},{"$f":"COUNTIF(الجدول3[[#This Row],[الإســـــلامية]:[الرياضــــــــة]],\"<5\")","v":0},{"$f":"VLOOKUP(الجدول3[[#This Row],[عدد الرسوب]],$AO$2:$AP$4,2)","v":"ناجح"}]
[89,null,null,null,null,null,null,null,null,null,null,{"$f":"SUM(الجدول3[[#This Row],[الإســـــلامية]:[الرياضــــــــة]])","v":0},{"$f":"NoToTxt(الجدول3[[#This Row],[المجموع رقما]],\".\",\".\")","v":"صفر"},{"$f":"COUNTIF(الجدول3[[#This Row],[الإســـــلامية]:[الرياضــــــــة]],\"<5\")","v":0},{"$f":"VLOOKUP(الجدول3[[#This Row],[عدد الرسوب]],$AO$2:$AP$4,2)","v":"ناجح"}]
[90,null,null,null,null,null,null,null,null,null,null,{"$f":"SUM(الجدول3[[#This Row],[الإســـــلامية]:[الرياضــــــــة]])","v":0},{"$f":"NoToTxt(الجدول3[[#This Row],[المجموع رقما]],\".\",\".\")","v":"صفر"},{"$f":"COUNTIF(الجدول3[[#This Row],[الإســـــلامية]:[الرياضــــــــة]],\"<5\")","v":0},{"$f":"VLOOKUP(الجدول3[[#This Row],[عدد الرسوب]],$AO$2:$AP$4,2)","v":"ناجح"}]
[91,null,null,null,null,null,null,null,null,null,null,{"$f":"SUM(الجدول3[[#This Row],[الإســـــلامية]:[الرياضــــــــة]])","v":0},{"$f":"NoToTxt(الجدول3[[#This Row],[المجموع رقما]],\".\",\".\")","v":"صفر"},{"$f":"COUNTIF(الجدول3[[#This Row],[الإســـــلامية]:[الرياضــــــــة]],\"<5\")","v":0},{"$f":"VLOOKUP(الجدول3[[#This Row],[عدد الرسوب]],$AO$2:$AP$4,2)","v":"ناجح"}]
[92,null,null,null,null,null,null,null,null,null,null,{"$f":"SUM(الجدول3[[#This Row],[الإســـــلامية]:[الرياضــــــــة]])","v":0},{"$f":"NoToTxt(الجدول3[[#This Row],[المجموع رقما]],\".\",\".\")","v":"صفر"},{"$f":"COUNTIF(الجدول3[[#This Row],[الإســـــلامية]:[الرياضــــــــة]],\"<5\")","v":0},{"$f":"VLOOKUP(الجدول3[[#This Row],[عدد الرسوب]],$AO$2:$AP$4,2)","v":"ناجح"}]
[93,null,null,null,null,null,null,null,null,null,null,{"$f":"SUM(الجدول3[[#This Row],[الإســـــلامية]:[الرياضــــــــة]])","v":0},{"$f":"NoToTxt(الجدول3[[#This Row],[المجموع رقما]],\".\",\".\")","v":"صفر"},{"$f":"COUNTIF(الجدول3[[#This Row],[الإســـــلامية]:[الرياضــــــــة]],\"<5\")","v":0},{"$f":"VLOOKUP(الجدول3[[#This Row],[عدد الرسوب]],$AO$2:$AP$4,2)","v":"ناجح"}]
[94,null,null,null,null,null,null,null,null,null,null,{"$f":"SUM(الجدول3[[#This Row],[الإســـــلامية]:[الرياضــــــــة]])","v":0},{"$f":"NoToTxt(الجدول3[[#This Row],[المجموع رقما]],\".\",\".\")","v":"صفر"},{"$f":"COUNTIF(الجدول3[[#This Row],[الإســـــلامية]:[الرياضــــــــة]],\"<5\")","v":0},{"$f":"VLOOKUP(الجدول3[[#This Row],[عدد الرسوب]],$AO$2:$AP$4,2)","v":"ناجح"}]
[95,null,null,null,null,null,null,null,null,null,null,{"$f":"SUM(الجدول3[[#This Row],[الإســـــلامية]:[الرياضــــــــة]])","v":0},{"$f":"NoToTxt(الجدول3[[#This Row],[المجموع رقما]],\".\",\".\")","v":"صفر"},{"$f":"COUNTIF(الجدول3[[#This Row],[الإســـــلامية]:[الرياضــــــــة]],\"<5\")","v":0},{"$f":"VLOOKUP(الجدول3[[#This Row],[عدد الرسوب]],$AO$2:$AP$4,2)","v":"ناجح"}]
[96,null,null,null,null,null,null,null,null,null,null,{"$f":"SUM(الجدول3[[#This Row],[الإســـــلامية]:[الرياضــــــــة]])","v":0},{"$f":"NoToTxt(الجدول3[[#This Row],[المجموع رقما]],\".\",\".\")","v":"صفر"},{"$f":"COUNTIF(الجدول3[[#This Row],[الإســـــلامية]:[الرياضــــــــة]],\"<5\")","v":0},{"$f":"VLOOKUP(الجدول3[[#This Row],[عدد الرسوب]],$AO$2:$AP$4,2)","v":"ناجح"}]
[97,null,null,null,null,null,null,null,null,null,null,{"$f":"SUM(الجدول3[[#This Row],[الإســـــلامية]:[الرياضــــــــة]])","v":0},{"$f":"NoToTxt(الجدول3[[#This Row],[المجموع رقما]],\".\",\".\")","v":"صفر"},{"$f":"COUNTIF(الجدول3[[#This Row],[الإســـــلامية]:[الرياضــــــــة]],\"<5\")","v":0},{"$f":"VLOOKUP(الجدول3[[#This Row],[عدد الرسوب]],$AO$2:$AP$4,2)","v":"ناجح"}]
[98,null,null,null,null,null,null,null,null,null,null,{"$f":"SUM(الجدول3[[#This Row],[الإســـــلامية]:[الرياضــــــــة]])","v":0},{"$f":"NoToTxt(الجدول3[[#This Row],[المجموع رقما]],\".\",\".\")","v":"صفر"},{"$f":"COUNTIF(الجدول3[[#This Row],[الإســـــلامية]:[الرياضــــــــة]],\"<5\")","v":0},{"$f":"VLOOKUP(الجدول3[[#This Row],[عدد الرسوب]],$AO$2:$AP$4,2)","v":"ناجح"}]
[99,null,null,null,null,null,null,null,null,null,null,{"$f":"SUM(الجدول3[[#This Row],[الإســـــلامية]:[الرياضــــــــة]])","v":0},{"$f":"NoToTxt(الجدول3[[#This Row],[المجموع رقما]],\".\",\".\")","v":"صفر"},{"$f":"COUNTIF(الجدول3[[#This Row],[الإســـــلامية]:[الرياضــــــــة]],\"<5\")","v":0},{"$f":"VLOOKUP(الجدول3[[#This Row],[عدد الرسوب]],$AO$2:$AP$4,2)","v":"ناجح"}]
[100,null,null,null,null,null,null,null,null,null,null,{"$f":"SUM(الجدول3[[#This Row],[الإســـــلامية]:[الرياضــــــــة]])","v":0},{"$f":"NoToTxt(الجدول3[[#This Row],[المجموع رقما]],\".\",\".\")","v":"صفر"},{"$f":"COUNTIF(الجدول3[[#This Row],[الإســـــلامية]:[الرياضــــــــة]],\"<5\")","v":0},{"$f":"VLOOKUP(الجدول3[[#This Row],[عدد الرسوب]],$AO$2:$AP$4,2)","v":"ناجح"}]
[101,null,null,null,null,null,null,null,null,null,null,{"$f":"SUM(الجدول3[[#This Row],[الإســـــلامية]:[الرياضــــــــة]])","v":0},{"$f":"NoToTxt(الجدول3[[#This Row],[المجموع رقما]],\".\",\".\")","v":"صفر"},{"$f":"COUNTIF(الجدول3[[#This Row],[الإســـــلامية]:[الرياضــــــــة]],\"<5\")","v":0},{"$f":"VLOOKUP(الجدول3[[#This Row],[عدد الرسوب]],$AO$2:$AP$4,2)","v":"ناجح"}]
[102,null,null,null,null,null,null,null,null,null,null,{"$f":"SUM(الجدول3[[#This Row],[الإســـــلامية]:[الرياضــــــــة]])","v":0},{"$f":"NoToTxt(الجدول3[[#This Row],[المجموع رقما]],\".\",\".\")","v":"صفر"},{"$f":"COUNTIF(الجدول3[[#This Row],[الإســـــلامية]:[الرياضــــــــة]],\"<5\")","v":0},{"$f":"VLOOKUP(الجدول3[[#This Row],[عدد الرسوب]],$AO$2:$AP$4,2)","v":"ناجح"}]
[103,null,null,null,null,null,null,null,null,null,null,{"$f":"SUM(الجدول3[[#This Row],[الإســـــلامية]:[الرياضــــــــة]])","v":0},{"$f":"NoToTxt(الجدول3[[#This Row],[المجموع رقما]],\".\",\".\")","v":"صفر"},{"$f":"COUNTIF(الجدول3[[#This Row],[الإســـــلامية]:[الرياضــــــــة]],\"<5\")","v":0},{"$f":"VLOOKUP(الجدول3[[#This Row],[عدد الرسوب]],$AO$2:$AP$4,2)","v":"ناجح"}]
[104,null,null,null,null,null,null,null,null,null,null,{"$f":"SUM(الجدول3[[#This Row],[الإســـــلامية]:[الرياضــــــــة]])","v":0},{"$f":"NoToTxt(الجدول3[[#This Row],[المجموع رقما]],\".\",\".\")","v":"صفر"},{"$f":"COUNTIF(الجدول3[[#This Row],[الإســـــلامية]:[الرياضــــــــة]],\"<5\")","v":0},{"$f":"VLOOKUP(الجدول3[[#This Row],[عدد الرسوب]],$AO$2:$AP$4,2)","v":"ناجح"}]
[105,null,null,null,null,null,null,null,null,null,null,{"$f":"SUM(الجدول3[[#This Row],[الإســـــلامية]:[الرياضــــــــة]])","v":0},{"$f":"NoToTxt(الجدول3[[#This Row],[المجموع رقما]],\".\",\".\")","v":"صفر"},{"$f":"COUNTIF(الجدول3[[#This Row],[الإســـــلامية]:[الرياضــــــــة]],\"<5\")","v":0},{"$f":"VLOOKUP(الجدول3[[#This Row],[عدد الرسوب]],$AO$2:$AP$4,2)","v":"ناجح"}]
[106,null,null,null,null,null,null,null,null,null,null,{"$f":"SUM(الجدول3[[#This Row],[الإســـــلامية]:[الرياضــــــــة]])","v":0},{"$f":"NoToTxt(الجدول3[[#This Row],[المجموع رقما]],\".\",\".\")","v":"صفر"},{"$f":"COUNTIF(الجدول3[[#This Row],[الإســـــلامية]:[الرياضــــــــة]],\"<5\")","v":0},{"$f":"VLOOKUP(الجدول3[[#This Row],[عدد الرسوب]],$AO$2:$AP$4,2)","v":"ناجح"}]
[107,null,null,null,null,null,null,null,null,null,null,{"$f":"SUM(الجدول3[[#This Row],[الإســـــلامية]:[الرياضــــــــة]])","v":0},{"$f":"NoToTxt(الجدول3[[#This Row],[المجموع رقما]],\".\",\".\")","v":"صفر"},{"$f":"COUNTIF(الجدول3[[#This Row],[الإســـــلامية]:[الرياضــــــــة]],\"<5\")","v":0},{"$f":"VLOOKUP(الجدول3[[#This Row],[عدد الرسوب]],$AO$2:$AP$4,2)","v":"ناجح"}]
[108,null,null,null,null,null,null,null,null,null,null,{"$f":"SUM(الجدول3[[#This Row],[الإســـــلامية]:[الرياضــــــــة]])","v":0},{"$f":"NoToTxt(الجدول3[[#This Row],[المجموع رقما]],\".\",\".\")","v":"صفر"},{"$f":"COUNTIF(الجدول3[[#This Row],[الإســـــلامية]:[الرياضــــــــة]],\"<5\")","v":0},{"$f":"VLOOKUP(الجدول3[[#This Row],[عدد الرسوب]],$AO$2:$AP$4,2)","v":"ناجح"}]
[109,null,null,null,null,null,null,null,null,null,null,{"$f":"SUM(الجدول3[[#This Row],[الإســـــلامية]:[الرياضــــــــة]])","v":0},{"$f":"NoToTxt(الجدول3[[#This Row],[المجموع رقما]],\".\",\".\")","v":"صفر"},{"$f":"COUNTIF(الجدول3[[#This Row],[الإســـــلامية]:[الرياضــــــــة]],\"<5\")","v":0},{"$f":"VLOOKUP(الجدول3[[#This Row],[عدد الرسوب]],$AO$2:$AP$4,2)","v":"ناجح"}]
[110,null,null,null,null,null,null,null,null,null,null,{"$f":"SUM(الجدول3[[#This Row],[الإســـــلامية]:[الرياضــــــــة]])","v":0},{"$f":"NoToTxt(الجدول3[[#This Row],[المجموع رقما]],\".\",\".\")","v":"صفر"},{"$f":"COUNTIF(الجدول3[[#This Row],[الإســـــلامية]:[الرياضــــــــة]],\"<5\")","v":0},{"$f":"VLOOKUP(الجدول3[[#This Row],[عدد الرسوب]],$AO$2:$AP$4,2)","v":"ناجح"}]
[111,null,null,null,null,null,null,null,null,null,null,{"$f":"SUM(الجدول3[[#This Row],[الإســـــلامية]:[الرياضــــــــة]])","v":0},{"$f":"NoToTxt(الجدول3[[#This Row],[المجموع رقما]],\".\",\".\")","v":"صفر"},{"$f":"COUNTIF(الجدول3[[#This Row],[الإســـــلامية]:[الرياضــــــــة]],\"<5\")","v":0},{"$f":"VLOOKUP(الجدول3[[#This Row],[عدد الرسوب]],$AO$2:$AP$4,2)","v":"ناجح"}]
[112,null,null,null,null,null,null,null,null,null,null,{"$f":"SUM(الجدول3[[#This Row],[الإســـــلامية]:[الرياضــــــــة]])","v":0},{"$f":"NoToTxt(الجدول3[[#This Row],[المجموع رقما]],\".\",\".\")","v":"صفر"},{"$f":"COUNTIF(الجدول3[[#This Row],[الإســـــلامية]:[الرياضــــــــة]],\"<5\")","v":0},{"$f":"VLOOKUP(الجدول3[[#This Row],[عدد الرسوب]],$AO$2:$AP$4,2)","v":"ناجح"}]
[113,null,null,null,null,null,null,null,null,null,null,{"$f":"SUM(الجدول3[[#This Row],[الإســـــلامية]:[الرياضــــــــة]])","v":0},{"$f":"NoToTxt(الجدول3[[#This Row],[المجموع رقما]],\".\",\".\")","v":"صفر"},{"$f":"COUNTIF(الجدول3[[#This Row],[الإســـــلامية]:[الرياضــــــــة]],\"<5\")","v":0},{"$f":"VLOOKUP(الجدول3[[#This Row],[عدد الرسوب]],$AO$2:$AP$4,2)","v":"ناجح"}]
[114,null,null,null,null,null,null,null,null,null,null,{"$f":"SUM(الجدول3[[#This Row],[الإســـــلامية]:[الرياضــــــــة]])","v":0},{"$f":"NoToTxt(الجدول3[[#This Row],[المجموع رقما]],\".\",\".\")","v":"صفر"},{"$f":"COUNTIF(الجدول3[[#This Row],[الإســـــلامية]:[الرياضــــــــة]],\"<5\")","v":0},{"$f":"VLOOKUP(الجدول3[[#This Row],[عدد الرسوب]],$AO$2:$AP$4,2)","v":"ناجح"}]
[115,null,null,null,null,null,null,null,null,null,null,{"$f":"SUM(الجدول3[[#This Row],[الإســـــلامية]:[الرياضــــــــة]])","v":0},{"$f":"NoToTxt(الجدول3[[#This Row],[المجموع رقما]],\".\",\".\")","v":"صفر"},{"$f":"COUNTIF(الجدول3[[#This Row],[الإســـــلامية]:[الرياضــــــــة]],\"<5\")","v":0},{"$f":"VLOOKUP(الجدول3[[#This Row],[عدد الرسوب]],$AO$2:$AP$4,2)","v":"ناجح"}]
[116,null,null,null,null,null,null,null,null,null,null,{"$f":"SUM(الجدول3[[#This Row],[الإســـــلامية]:[الرياضــــــــة]])","v":0},{"$f":"NoToTxt(الجدول3[[#This Row],[المجموع رقما]],\".\",\".\")","v":"صفر"},{"$f":"COUNTIF(الجدول3[[#This Row],[الإســـــلامية]:[الرياضــــــــة]],\"<5\")","v":0},{"$f":"VLOOKUP(الجدول3[[#This Row],[عدد الرسوب]],$AO$2:$AP$4,2)","v":"ناجح"}]

{"sheet":"ورقة1","index":1,"n_rows":19,"n_cols":14,"rows_kept":19,"cut":false,"hidden":false,"merged":[[16,0,16,1],[16,3,16,6],[16,8,16,9],[16,11,16,14],[18,0,18,2],[18,4,18,6],[18,8,18,10],[18,12,18,14],[14,0,14,1],[14,3,14,6],[14,8,14,9],[14,11,14,14],[15,0,15,1],[15,3,15,6],[15,8,15,9],[15,11,15,14],[12,0,12,1],[12,3,12,6],[12,8,12,9],[12,11,12,14],[13,0,13,1],[13,3,13,6],[13,8,13,9],[13,11,13,14],[10,0,10,1],[10,3,10,4],[10,8,10,9],[10,11,10,12],[11,0,11,1],[11,3,11,4],[11,8,11,9],[11,11,11,12],[8,0,8,1],[8,3,8,4],[8,8,8,9],[8,11,8,12],[9,0,9,1],[9,3,9,4],[9,8,9,9],[9,11,9,12],[6,0,6,1],[6,3,6,4],[6,8,6,9],[6,11,6,12],[7,0,7,1],[7,3,7,4],[7,8,7,9],[7,11,7,12],[4,0,4,1],[4,3,4,4],[4,8,4,9],[4,11,4,12],[5,0,5,1],[5,3,5,4],[5,8,5,9],[5,11,5,12],[2,2,2,3],[2,4,2,6],[2,10,2,11],[2,12,2,14],[3,0,3,1],[3,3,3,4],[3,5,3,6],[3,8,3,9],[3,11,3,12],[3,13,3,14],[0,0,0,6],[0,8,0,14],[1,0,1,2],[1,3,1,4],[1,8,1,10],[1,11,1,12]]}
["نتائج الامتحان النهائي 2019/2018",null,null,null,null,null,null,null,"نتائج الامتحان النهائي 2019/2018"]
["مدرسة ابوجردة القديمة / م",null,null,"الصف :",null,null,null,null,"مدرسة ابوجردة القديمة / م",null,null,"الصف :"]
["رقم القيد",null,"اسم التلميذ",null,null,null,null,null,"رقم القيد",null,"اسم التلميذ"]
["المادة",null,"الدرجة رقما","الدرجة كتابة",null,"الملاحظات",null,null,"المادة",null,"الدرجة رقما","الدرجة كتابة",null,"الملاحظات"]
["الاسلاميـــة",null,null,null,null,null,null,null,"الاسلاميـــة"]
["العربيـــــــة",null,null,null,null,null,null,null,"العربيـــــــة"]
["الإنكليزيـــة",null,null,null,null,null,null,null,"الإنكليزيـــة"]
["الرياضيـــات",null,null,null,null,null,null,null,"الرياضيـــات"]
["العلــــــــــوم",null,null,null,null,null,null,null,"العلــــــــــوم"]
["الاجتماعيات",null,null,null,null,null,null,null,"الاجتماعيات"]
["الفنية والنشيد",null,null,null,null,null,null,null,"الفنية والنشيد"]
["الرياضــــــة",null,null,null,null,null,null,null,"الرياضــــــة"]
[]
[]
["النتيجة",null,null,null,null,null,null,null,"النتيجة"]
[]
[]
[]
["مرشد الصف :",null,null,null,"مدير المدرسة:",null,null,null,"مرشد الصف :",null,null,null,"مدير المدرسة:"]